[Event "Titled Tuesday Blitz March 28 Early 2023"]
[White "Bodnaruk, Anastasia"]
[Black "Kosakowski, Jakub"]
[WhiteFideId "4181751"]
[BlackFideId "1185080"]
[WhiteElo "2310"]
[BlackElo "2488"]
[Result "1-0"]
[Round "11"]
[TimeControl "180+2"]
[Date "2023.03.28"]
[WhiteClock "0:00:09"]
[BlackClock "0:00:05"]

1. e4 {[%clk 0:03:00]}  c5 {[%clk 0:02:54]} 2. Nc3 {[%clk 0:03:00]}  d6 {[%clk 0:02:52]} 3. Nge2 {[%clk 0:02:58]}  Nf6 {[%clk 0:02:51]} 4. d4 {[%clk 0:02:58]}  cxd4 {[%clk 0:02:51]} 5. Nxd4 {[%clk 0:02:59]}  a6 {[%clk 0:02:52]} 6. Nb3 {[%clk 0:02:58]}  g6 {[%clk 0:02:50]} 7. Be3 {[%clk 0:02:55]}  Bg7 {[%clk 0:02:49]} 8. Qd2 {[%clk 0:02:55]}  Nc6 {[%clk 0:02:46]} 9. Bh6 {[%clk 0:02:54]}  Bxh6 {[%clk 0:02:46]} 10. Qxh6 {[%clk 0:02:53]}  Be6 {[%clk 0:02:42]} 11. O-O-O {[%clk 0:02:51]}  Qb6 {[%clk 0:02:41]} 12. f3 {[%clk 0:02:46]}  Rc8 {[%clk 0:02:36]} 13. Kb1 {[%clk 0:02:42]}  Nb4 {[%clk 0:02:29]} 14. Qd2 {[%clk 0:02:08]}  Nd7 {[%clk 0:02:26]} 15. Qd4 {[%clk 0:02:06]}  Qxd4 {[%clk 0:02:17]} 16. Nxd4 {[%clk 0:02:06]}  Ne5 {[%clk 0:02:16]} 17. Nxe6 {[%clk 0:01:59]}  fxe6 {[%clk 0:02:17]} 18. a3 {[%clk 0:01:50]}  Nbc6 {[%clk 0:02:17]} 19. f4 {[%clk 0:01:49]}  Ng4 {[%clk 0:02:17]} 20. Re1 {[%clk 0:01:48]}  e5 {[%clk 0:01:56]} 21. g3 {[%clk 0:01:34]}  exf4 {[%clk 0:01:56]} 22. gxf4 {[%clk 0:01:34]}  Rf8 {[%clk 0:01:55]} 23. Bh3 {[%clk 0:01:28]}  h5 {[%clk 0:01:41]} 24. Bxg4 {[%clk 0:01:27]}  hxg4 {[%clk 0:01:42]} 25. Ne2 {[%clk 0:01:26]}  e5 {[%clk 0:01:39]} 26. Ref1 {[%clk 0:01:12]}  exf4 {[%clk 0:01:32]} 27. Rxf4 {[%clk 0:01:04]}  Ne5 {[%clk 0:01:32]} 28. h3 {[%clk 0:00:50]}  Rxf4 {[%clk 0:01:25]} 29. Nxf4 {[%clk 0:00:49]}  Rc4 {[%clk 0:01:26]} 30. hxg4 {[%clk 0:00:36]}  Rxe4 {[%clk 0:01:25]} 31. Rh8+ {[%clk 0:00:22]}  Kd7 {[%clk 0:01:23]} 32. Rh7+ {[%clk 0:00:22]}  Kc6 {[%clk 0:01:24]} 33. Ne6 {[%clk 0:00:22]}  Nxg4 {[%clk 0:01:14]} 34. Nd8+ {[%clk 0:00:23]}  Kd5 {[%clk 0:01:14]} 35. Nxb7 {[%clk 0:00:21]}  Ne5 {[%clk 0:01:12]} 36. b3 {[%clk 0:00:17]}  g5 {[%clk 0:01:12]} 37. Rh6 {[%clk 0:00:14]}  Nf7 {[%clk 0:01:01]} 38. Rg6 {[%clk 0:00:13]}  g4 {[%clk 0:01:00]} 39. Kc1 {[%clk 0:00:09]}  Ke5 {[%clk 0:00:48]} 40. Kd2 {[%clk 0:00:09]}  d5 {[%clk 0:00:40]} 41. Nc5 {[%clk 0:00:08]}  Kf5 {[%clk 0:00:32]} 42. Rg7 {[%clk 0:00:06]}  Re7 {[%clk 0:00:33]} 43. Nd3 {[%clk 0:00:06]}  d4 {[%clk 0:00:29]} 44. b4 {[%clk 0:00:04]}  Rb7 {[%clk 0:00:24]} 45. a4 {[%clk 0:00:05]}  Nd6 {[%clk 0:00:24]} 46. Rg8 {[%clk 0:00:04]}  Ne4+ {[%clk 0:00:20]} 47. Kd1 {[%clk 0:00:03]}  Nc3+ {[%clk 0:00:20]} 48. Kd2 {[%clk 0:00:03]}  Nxa4 {[%clk 0:00:20]} 49. Rf8+ {[%clk 0:00:02]}  Ke6 {[%clk 0:00:19]} 50. Rg8 {[%clk 0:00:02]}  Kf5 {[%clk 0:00:18]} 51. Rf8+ {[%clk 0:00:03]}  Kg5 {[%clk 0:00:18]} 52. Rg8+ {[%clk 0:00:03]}  Kh4 {[%clk 0:00:19]} 53. Ne5 {[%clk 0:00:03]}  g3 {[%clk 0:00:18]} 54. Rh8+ {[%clk 0:00:02]}  Kg5 {[%clk 0:00:19]} 55. Rg8+ {[%clk 0:00:02]}  Kf4 {[%clk 0:00:19]} 56. Nd3+ {[%clk 0:00:03]}  Kf3 {[%clk 0:00:20]} 57. Rf8+ {[%clk 0:00:03]}  Kg2 {[%clk 0:00:20]} 58. Ne1+ {[%clk 0:00:03]}  Kh2 {[%clk 0:00:19]} 59. Rh8+ {[%clk 0:00:02]}  Kg1 {[%clk 0:00:19]} 60. Rg8 {[%clk 0:00:03]}  Nc3 {[%clk 0:00:11]} 61. Rxg3+ {[%clk 0:00:03]}  Kf2 {[%clk 0:00:11]} 62. Rg2+ {[%clk 0:00:03]}  Kf1 {[%clk 0:00:11]} 63. Rg4 {[%clk 0:00:03]}  Rxb4 {[%clk 0:00:11]} 64. Rf4+ {[%clk 0:00:04]}  Kg1 {[%clk 0:00:11]} 65. Nf3+ {[%clk 0:00:03]}  Kg2 {[%clk 0:00:09]} 66. Nxd4 {[%clk 0:00:04]}  Nd5 {[%clk 0:00:09]} 67. Rg4+ {[%clk 0:00:04]}  Kh3 {[%clk 0:00:10]} 68. Re4 {[%clk 0:00:04]}  Nf6 {[%clk 0:00:10]} 69. Rf4 {[%clk 0:00:04]}  Nh5 {[%clk 0:00:11]} 70. Re4 {[%clk 0:00:04]}  Ng3 {[%clk 0:00:11]} 71. Rf4 {[%clk 0:00:05]}  a5 {[%clk 0:00:11]} 72. c3 {[%clk 0:00:05]}  Rb2+ {[%clk 0:00:12]} 73. Kd3 {[%clk 0:00:06]}  a4 {[%clk 0:00:12]} 74. Nf3 {[%clk 0:00:05]}  a3 {[%clk 0:00:09]} 75. Ra4 {[%clk 0:00:05]}  a2 {[%clk 0:00:08]} 76. Nd4 {[%clk 0:00:06]}  Nf1 {[%clk 0:00:08]} 77. Nc2 {[%clk 0:00:06]}  Kg2 {[%clk 0:00:06]} 78. c4 {[%clk 0:00:06]}  Rb3+ {[%clk 0:00:06]} 79. Kd4 {[%clk 0:00:06]}  Rb2 {[%clk 0:00:05]} 80. Kc3 {[%clk 0:00:06]}  Rb8 {[%clk 0:00:04]} 81. Rxa2 {[%clk 0:00:06]}  Kf3 {[%clk 0:00:04]} 82. Nd4+ {[%clk 0:00:07]}  Ke4 {[%clk 0:00:05]} 83. Re2+ {[%clk 0:00:07]}  Kf4 {[%clk 0:00:04]} 84. Rf2+ {[%clk 0:00:07]}  Ke3 {[%clk 0:00:04]} 85. Rxf1 {[%clk 0:00:08]}  Ra8 {[%clk 0:00:03]} 86. Re1+ {[%clk 0:00:08]}  Kf4 {[%clk 0:00:04]} 87. Rf1+ {[%clk 0:00:08]}  Ke3 {[%clk 0:00:03]} 88. Re1+ {[%clk 0:00:08]}  Kf4 {[%clk 0:00:04]} 89. Re7 {[%clk 0:00:09]}  Ra1 {[%clk 0:00:04]} 90. Nb3 {[%clk 0:00:09]}  Rb1 {[%clk 0:00:04]} 91. c5 {[%clk 0:00:09]}  Kf5 {[%clk 0:00:04]} 92. c6 {[%clk 0:00:09]}  Kf6 {[%clk 0:00:05]} 93. c7 {[%clk 0:00:09]} 1-0


[Site "https://www.chess.com"]

[Event "Titled Tuesday Blitz March 28 Early 2023"]
[White "Zemlyanskii, Ivan"]
[Black "Ismagilov, Damir"]
[WhiteFideId "24249971"]
[BlackFideId "34199982"]
[WhiteElo "2233"]
[BlackElo "2078"]
[Result "1-0"]
[Round "11"]
[TimeControl "180+2"]
[Date "2023.03.28"]
[WhiteClock "0:00:43"]
[BlackClock "0:00:10"]

1. d4 {[%clk 0:03:00]}  Nf6 {[%clk 0:02:58]} 2. c4 {[%clk 0:03:00]}  e6 {[%clk 0:02:59]} 3. Bf4 {[%clk 0:02:57]}  d5 {[%clk 0:02:53]} 4. Nc3 {[%clk 0:02:57]}  c5 {[%clk 0:02:36]} 5. Nf3 {[%clk 0:02:55]}  cxd4 {[%clk 0:02:29]} 6. Nxd4 {[%clk 0:02:56]}  Nc6 {[%clk 0:02:30]} 7. cxd5 {[%clk 0:02:54]}  Nxd5 {[%clk 0:02:10]} 8. Nxc6 {[%clk 0:02:53]}  bxc6 {[%clk 0:02:06]} 9. Bd2 {[%clk 0:02:52]}  Bb4 {[%clk 0:02:01]} 10. Qc2 {[%clk 0:02:51]}  Qf6 {[%clk 0:01:55]} 11. Rc1 {[%clk 0:02:36]}  O-O {[%clk 0:01:48]} 12. e3 {[%clk 0:02:24]}  c5 {[%clk 0:01:39]} 13. a3 {[%clk 0:02:18]}  Bxc3 {[%clk 0:01:27]} 14. Bxc3 {[%clk 0:02:19]}  Nxc3 {[%clk 0:01:15]} 15. Qxc3 {[%clk 0:02:19]}  Qg6 {[%clk 0:01:16]} 16. f3 {[%clk 0:02:11]}  Bb7 {[%clk 0:01:07]} 17. Kf2 {[%clk 0:02:12]}  Rfd8 {[%clk 0:01:06]} 18. Be2 {[%clk 0:02:10]}  Rd5 {[%clk 0:01:02]} 19. Rcd1 {[%clk 0:01:41]}  Rg5 {[%clk 0:00:48]} 20. g3 {[%clk 0:01:41]}  Rf5 {[%clk 0:00:33]} 21. Kg2 {[%clk 0:01:32]}  Qh5 {[%clk 0:00:29]} 22. Rhf1 {[%clk 0:01:25]}  Rf6 {[%clk 0:00:29]} 23. Qd2 {[%clk 0:01:18]}  h6 {[%clk 0:00:19]} 24. e4 {[%clk 0:01:14]}  Rb8 {[%clk 0:00:16]} 25. Qe3 {[%clk 0:01:13]}  Qe5 {[%clk 0:00:15]} 26. Rd2 {[%clk 0:01:10]}  g5 {[%clk 0:00:13]} 27. Rc1 {[%clk 0:00:59]}  g4 {[%clk 0:00:13]} 28. Rxc5 {[%clk 0:00:59]}  gxf3+ {[%clk 0:00:12]} 29. Bxf3 {[%clk 0:01:00]}  Rxf3 {[%clk 0:00:04]} 30. Kxf3 {[%clk 0:01:01]}  Bxe4+ {[%clk 0:00:04]} 31. Kf2 {[%clk 0:00:58]}  Qf6+ {[%clk 0:00:04]} 32. Qf4 {[%clk 0:00:55]}  Qxf4+ {[%clk 0:00:04]} 33. gxf4 {[%clk 0:00:56]}  Bd5 {[%clk 0:00:04]} 34. b4 {[%clk 0:00:57]}  Kg7 {[%clk 0:00:03]} 35. Ke3 {[%clk 0:00:57]}  Kf6 {[%clk 0:00:03]} 36. Ra5 {[%clk 0:00:56]}  Rb7 {[%clk 0:00:03]} 37. Rc2 {[%clk 0:00:56]}  h5 {[%clk 0:00:03]} 38. Rc8 {[%clk 0:00:54]}  h4 {[%clk 0:00:03]} 39. Rac5 {[%clk 0:00:54]}  Rb6 {[%clk 0:00:02]} 40. R5c7 {[%clk 0:00:53]}  Ra6 {[%clk 0:00:02]} 41. Rc3 {[%clk 0:00:52]}  Rb6 {[%clk 0:00:01]} 42. Rh8 {[%clk 0:00:51]}  a6 {[%clk 0:00:02]} 43. Rxh4 {[%clk 0:00:52]}  Rd6 {[%clk 0:00:02]} 44. Rh8 {[%clk 0:00:49]}  a5 {[%clk 0:00:02]} 45. bxa5 {[%clk 0:00:44]}  Ra6 {[%clk 0:00:01]} 46. Rc5 {[%clk 0:00:44]}  Ke7 {[%clk 0:00:02]} 47. Rb8 {[%clk 0:00:43]}  Kd6 {[%clk 0:00:03]} 48. Rcb5 {[%clk 0:00:41]}  Bc4 {[%clk 0:00:03]} 49. R8b6+ {[%clk 0:00:41]}  Kc7 {[%clk 0:00:02]} 50. Rc5+ {[%clk 0:00:40]}  Kd7 {[%clk 0:00:02]} 51. Rxc4 {[%clk 0:00:41]}  Rxa5 {[%clk 0:00:02]} 52. Rb3 {[%clk 0:00:37]}  Rh5 {[%clk 0:00:01]} 53. Rd3+ {[%clk 0:00:38]}  Ke7 {[%clk 0:00:01]} 54. Rc2 {[%clk 0:00:39]}  Kf6 {[%clk 0:00:01]} 55. a4 {[%clk 0:00:39]}  Rh3+ {[%clk 0:00:02]} 56. Kd4 {[%clk 0:00:39]}  Rh5 {[%clk 0:00:03]} 57. Ra2 {[%clk 0:00:40]}  Ra5 {[%clk 0:00:03]} 58. Kc4 {[%clk 0:00:40]}  Ke7 {[%clk 0:00:04]} 59. Rb3 {[%clk 0:00:40]}  Ra8 {[%clk 0:00:05]} 60. Rb5 {[%clk 0:00:41]}  Rc8+ {[%clk 0:00:05]} 61. Kb4 {[%clk 0:00:41]}  Rc1 {[%clk 0:00:06]} 62. a5 {[%clk 0:00:42]}  Rb1+ {[%clk 0:00:06]} 63. Ka4 {[%clk 0:00:43]}  Kd6 {[%clk 0:00:06]} 64. Rxb1 {[%clk 0:00:40]}  Ke7 {[%clk 0:00:06]} 65. a6 {[%clk 0:00:41]}  Kf6 {[%clk 0:00:07]} 66. a7 {[%clk 0:00:42]}  Kf5 {[%clk 0:00:08]} 67. a8=Q {[%clk 0:00:43]}  e5 {[%clk 0:00:09]} 68. Qd5 {[%clk 0:00:43]}  f6 {[%clk 0:00:10]} 1-0


[Site "https://www.chess.com"]

[Event "Titled Tuesday Blitz March 28 Early 2023"]
[White "Santos Ruiz, Miguel"]
[Black "Martic, Ivan"]
[WhiteFideId "22291482"]
[BlackFideId "929301"]
[WhiteElo "2504"]
[BlackElo "2360"]
[Result "1-0"]
[Round "11"]
[TimeControl "180+2"]
[Date "2023.03.28"]
[WhiteClock "0:01:13"]
[BlackClock "0:00:38"]

1. d4 {[%clk 0:03:00]}  Nf6 {[%clk 0:02:59]} 2. Nf3 {[%clk 0:03:00]}  g6 {[%clk 0:02:59]} 3. Bf4 {[%clk 0:02:57]}  Bg7 {[%clk 0:02:59]} 4. Nbd2 {[%clk 0:02:57]}  O-O {[%clk 0:02:59]} 5. e4 {[%clk 0:02:57]}  d6 {[%clk 0:02:59]} 6. h3 {[%clk 0:02:55]}  Nc6 {[%clk 0:02:56]} 7. c3 {[%clk 0:02:50]}  Nd7 {[%clk 0:02:27]} 8. d5 {[%clk 0:02:28]}  Nce5 {[%clk 0:02:14]} 9. Be2 {[%clk 0:02:20]}  c5 {[%clk 0:02:13]} 10. dxc6 {[%clk 0:02:10]}  bxc6 {[%clk 0:02:08]} 11. O-O {[%clk 0:02:08]}  Rb8 {[%clk 0:02:05]} 12. Qc2 {[%clk 0:02:08]}  c5 {[%clk 0:02:03]} 13. Rfd1 {[%clk 0:02:05]}  Qc7 {[%clk 0:01:58]} 14. Nxe5 {[%clk 0:01:59]}  Nxe5 {[%clk 0:01:58]} 15. Nc4 {[%clk 0:02:00]}  Nc6 {[%clk 0:01:49]} 16. Rd2 {[%clk 0:01:48]}  Be6 {[%clk 0:01:43]} 17. Qa4 {[%clk 0:01:42]}  Rfc8 {[%clk 0:01:37]} 18. Rad1 {[%clk 0:01:39]}  Bd7 {[%clk 0:01:10]} 19. Nxd6 {[%clk 0:01:26]}  Nd4 {[%clk 0:01:07]} 20. Nxc8 {[%clk 0:01:26]}  Rxc8 {[%clk 0:00:49]} 21. Bxc7 {[%clk 0:01:23]}  Nxe2+ {[%clk 0:00:48]} 22. Kf1 {[%clk 0:01:13]}  Bxa4 {[%clk 0:00:49]} 23. Rd8+ {[%clk 0:01:13]}  Rxd8 {[%clk 0:00:46]} 24. Rxd8+ {[%clk 0:01:13]}  Bf8 {[%clk 0:00:45]} 25. Kxe2 {[%clk 0:01:13]}  Kg7 {[%clk 0:00:45]} 26. Bf4 {[%clk 0:01:12]}  f6 {[%clk 0:00:40]} 27. Bh6+ {[%clk 0:01:12]}  Kxh6 {[%clk 0:00:40]} 28. Rxf8 {[%clk 0:01:13]}  Bb5+ {[%clk 0:00:39]} 29. Ke3 {[%clk 0:01:13]}  Kg7 {[%clk 0:00:38]} 30. Rc8 {[%clk 0:01:13]} 1-0


[Site "https://www.chess.com"]

[Event "Titled Tuesday Blitz March 28 Early 2023"]
[White "Alinasab, Mobina"]
[Black "Prohaszka, Peter"]
[WhiteFideId "12528897"]
[BlackFideId "726265"]
[WhiteElo "2141"]
[BlackElo "2626"]
[Result "0-1"]
[Round "11"]
[TimeControl "180+2"]
[Date "2023.03.28"]
[WhiteClock "0:01:01"]
[BlackClock "0:01:46"]

1. Nf3 {[%clk 0:03:00]}  d5 {[%clk 0:02:54]} 2. g3 {[%clk 0:02:58]}  Bf5 {[%clk 0:02:53]} 3. Bg2 {[%clk 0:02:57]}  c6 {[%clk 0:02:54]} 4. O-O {[%clk 0:02:56]}  e6 {[%clk 0:02:54]} 5. d3 {[%clk 0:02:43]}  Nf6 {[%clk 0:02:54]} 6. c4 {[%clk 0:02:43]}  dxc4 {[%clk 0:02:53]} 7. dxc4 {[%clk 0:02:40]}  Nbd7 {[%clk 0:02:54]} 8. Nc3 {[%clk 0:02:35]}  h6 {[%clk 0:02:54]} 9. Bf4 {[%clk 0:02:18]}  Be7 {[%clk 0:02:53]} 10. Bd6 {[%clk 0:02:18]}  O-O {[%clk 0:02:53]} 11. b3 {[%clk 0:01:54]}  Nc5 {[%clk 0:02:41]} 12. Bxe7 {[%clk 0:01:52]}  Qxe7 {[%clk 0:02:42]} 13. Qc1 {[%clk 0:01:52]}  Rfd8 {[%clk 0:02:40]} 14. Qa3 {[%clk 0:01:49]}  Kf8 {[%clk 0:02:39]} 15. Rfd1 {[%clk 0:01:42]}  Na6 {[%clk 0:02:25]} 16. Qxe7+ {[%clk 0:01:40]}  Kxe7 {[%clk 0:02:26]} 17. Rxd8 {[%clk 0:01:40]}  Rxd8 {[%clk 0:02:26]} 18. Rd1 {[%clk 0:01:40]}  Rxd1+ {[%clk 0:02:19]} 19. Nxd1 {[%clk 0:01:41]}  Nb4 {[%clk 0:02:15]} 20. Nc3 {[%clk 0:01:37]}  Ne4 {[%clk 0:02:15]} 21. Nxe4 {[%clk 0:01:37]}  Bxe4 {[%clk 0:02:16]} 22. a3 {[%clk 0:01:29]}  Nc2 {[%clk 0:02:08]} 23. a4 {[%clk 0:01:27]}  Bxf3 {[%clk 0:02:00]} 24. Bxf3 {[%clk 0:01:23]}  Nd4 {[%clk 0:01:52]} 25. b4 {[%clk 0:01:22]}  Nxf3+ {[%clk 0:01:45]} 26. exf3 {[%clk 0:01:22]}  a5 {[%clk 0:01:46]} 27. b5 {[%clk 0:01:16]}  Kd6 {[%clk 0:01:45]} 28. Kf1 {[%clk 0:01:11]}  Kc5 {[%clk 0:01:46]} 29. Ke2 {[%clk 0:01:04]}  Kxc4 {[%clk 0:01:45]} 30. bxc6 {[%clk 0:01:02]}  bxc6 {[%clk 0:01:46]} 31. Kd2 {[%clk 0:01:02]}  Kb3 {[%clk 0:01:46]} 32. Kd3 {[%clk 0:01:01]}  c5 {[%clk 0:01:46]} 0-1


[Site "https://www.chess.com"]

[Event "Titled Tuesday Blitz March 28 Early 2023"]
[White "Sanchez Alvares, Kelvin Antonio"]
[Black "wqws"]
[WhiteFideId "3906680"]
[WhiteElo "2217"]
[BlackElo "2688"]
[Result "0-1"]
[Round "11"]
[TimeControl "180+2"]
[Date "2023.03.28"]
[WhiteClock "0:00:28"]
[BlackClock "0:00:44"]

1. e4 {[%clk 0:03:00]}  c5 {[%clk 0:02:59]} 2. Nf3 {[%clk 0:03:00]}  d6 {[%clk 0:02:59]} 3. d4 {[%clk 0:03:01]}  cxd4 {[%clk 0:03:00]} 4. Nxd4 {[%clk 0:03:01]}  Nf6 {[%clk 0:03:01]} 5. Nc3 {[%clk 0:03:02]}  a6 {[%clk 0:03:02]} 6. Bg5 {[%clk 0:03:01]}  e6 {[%clk 0:02:59]} 7. f4 {[%clk 0:03:02]}  Be7 {[%clk 0:02:59]} 8. Qf3 {[%clk 0:03:01]}  Qc7 {[%clk 0:02:58]} 9. O-O-O {[%clk 0:03:02]}  Nbd7 {[%clk 0:02:58]} 10. g4 {[%clk 0:03:00]}  b5 {[%clk 0:02:58]} 11. Bd3 {[%clk 0:02:59]}  Bb7 {[%clk 0:02:58]} 12. a3 {[%clk 0:02:58]}  h6 {[%clk 0:02:53]} 13. Bxf6 {[%clk 0:02:54]}  Bxf6 {[%clk 0:02:40]} 14. Nce2 {[%clk 0:02:47]}  Nc5 {[%clk 0:02:30]} 15. Kb1 {[%clk 0:02:47]}  O-O-O {[%clk 0:02:23]} 16. h4 {[%clk 0:02:44]}  Kb8 {[%clk 0:02:19]} 17. g5 {[%clk 0:02:43]}  Be7 {[%clk 0:02:17]} 18. g6 {[%clk 0:02:29]}  f5 {[%clk 0:02:15]} 19. Ng3 {[%clk 0:02:19]}  Bf6 {[%clk 0:02:12]} 20. Nb3 {[%clk 0:02:15]}  Na4 {[%clk 0:02:01]} 21. Qe3 {[%clk 0:01:46]}  Nxb2 {[%clk 0:01:59]} 22. Rde1 {[%clk 0:01:38]}  Na4 {[%clk 0:01:53]} 23. e5 {[%clk 0:01:34]}  dxe5 {[%clk 0:01:52]} 24. fxe5 {[%clk 0:01:34]}  Be7 {[%clk 0:01:52]} 25. Rhf1 {[%clk 0:01:19]}  Bxa3 {[%clk 0:01:50]} 26. Qd2 {[%clk 0:01:16]}  Nc3+ {[%clk 0:01:49]} 27. Ka1 {[%clk 0:01:15]}  b4 {[%clk 0:01:46]} 28. Qf2 {[%clk 0:00:59]}  Qc6 {[%clk 0:01:43]} 29. Qc5 {[%clk 0:00:55]}  Rd5 {[%clk 0:01:30]} 30. Qxc6 {[%clk 0:00:53]}  Bxc6 {[%clk 0:01:30]} 31. Bc4 {[%clk 0:00:52]}  a5 {[%clk 0:01:14]} 32. Bxd5 {[%clk 0:00:51]}  Bxd5 {[%clk 0:01:15]} 33. Nxa5 {[%clk 0:00:51]}  Kc7 {[%clk 0:01:14]} 34. Ne2 {[%clk 0:00:42]}  Ra8 {[%clk 0:01:09]} 35. Nxc3 {[%clk 0:00:40]}  bxc3 {[%clk 0:01:01]} 36. Nb3 {[%clk 0:00:39]}  Bxb3 {[%clk 0:00:49]} 37. cxb3 {[%clk 0:00:39]}  c2 {[%clk 0:00:49]} 38. Rf4 {[%clk 0:00:29]}  Bc1+ {[%clk 0:00:44]} 39. Ra4 {[%clk 0:00:27]}  Rxa4+ {[%clk 0:00:44]} 40. bxa4 {[%clk 0:00:28]}  Bd2 {[%clk 0:00:44]} 0-1


[Site "https://www.chess.com"]

[Event "Titled Tuesday Blitz March 28 Early 2023"]
[White "Garv Gaur"]
[Black "Tregubov, Pavel V."]
[WhiteFideId "45030839"]
[BlackFideId "4115341"]
[WhiteElo "2068"]
[BlackElo "2425"]
[Result "0-1"]
[Round "11"]
[TimeControl "180+2"]
[Date "2023.03.28"]
[WhiteClock "0:01:36"]
[BlackClock "0:01:47"]

1. Nf3 {[%clk 0:03:00]}  Nf6 {[%clk 0:02:57]} 2. g3 {[%clk 0:03:00]}  c5 {[%clk 0:02:57]} 3. Bg2 {[%clk 0:03:00]}  Nc6 {[%clk 0:02:58]} 4. O-O {[%clk 0:02:59]}  e5 {[%clk 0:02:57]} 5. d3 {[%clk 0:02:54]}  d5 {[%clk 0:02:57]} 6. Nbd2 {[%clk 0:02:54]}  Be7 {[%clk 0:02:55]} 7. e4 {[%clk 0:02:54]}  O-O {[%clk 0:02:56]} 8. c3 {[%clk 0:02:53]}  d4 {[%clk 0:02:54]} 9. Qe2 {[%clk 0:02:50]}  b5 {[%clk 0:02:48]} 10. a4 {[%clk 0:02:49]}  bxa4 {[%clk 0:02:40]} 11. Nc4 {[%clk 0:02:48]}  Nd7 {[%clk 0:02:36]} 12. Rxa4 {[%clk 0:02:41]}  f6 {[%clk 0:02:37]} 13. Ne1 {[%clk 0:02:35]}  Rb8 {[%clk 0:02:32]} 14. f4 {[%clk 0:02:34]}  Nb6 {[%clk 0:02:31]} 15. Nxb6 {[%clk 0:02:32]}  axb6 {[%clk 0:02:31]} 16. Nf3 {[%clk 0:02:30]}  b5 {[%clk 0:02:30]} 17. Ra1 {[%clk 0:02:29]}  Be6 {[%clk 0:02:23]} 18. Bd2 {[%clk 0:02:24]}  c4 {[%clk 0:02:20]} 19. cxd4 {[%clk 0:02:08]}  cxd3 {[%clk 0:02:19]} 20. Qxd3 {[%clk 0:02:08]}  Bc4 {[%clk 0:02:17]} 21. Qc3 {[%clk 0:02:02]}  Nxd4 {[%clk 0:02:15]} 22. Rfe1 {[%clk 0:01:52]}  Ne2+ {[%clk 0:01:59]} 23. Rxe2 {[%clk 0:01:52]}  Bxe2 {[%clk 0:01:59]} 24. fxe5 {[%clk 0:01:52]}  Rc8 {[%clk 0:01:53]} 25. Qb3+ {[%clk 0:01:48]}  Bc4 {[%clk 0:01:53]} 26. Qd1 {[%clk 0:01:43]}  fxe5 {[%clk 0:01:52]} 27. Bc3 {[%clk 0:01:38]}  Qxd1+ {[%clk 0:01:47]} 28. Rxd1 {[%clk 0:01:39]}  Be2 {[%clk 0:01:47]} 29. Rd7 {[%clk 0:01:36]}  Bc5+ {[%clk 0:01:47]} 0-1


[Site "https://www.chess.com"]

[Event "Titled Tuesday Blitz March 28 Early 2023"]
[White "Osinenko, Anton"]
[Black "Karolczuk, Iwo"]
[WhiteFideId "4158970"]
[BlackFideId "21816972"]
[WhiteElo "2294"]
[BlackElo "2348"]
[Result "1-0"]
[Round "11"]
[TimeControl "180+2"]
[Date "2023.03.28"]
[WhiteClock "0:00:46"]
[BlackClock "0:00:02"]

1. e4 {[%clk 0:03:00]}  a6 {[%clk 0:03:00]} 2. d4 {[%clk 0:03:00]}  e6 {[%clk 0:03:01]} 3. c3 {[%clk 0:03:00]}  b5 {[%clk 0:03:01]} 4. Bd3 {[%clk 0:03:00]}  Bb7 {[%clk 0:03:01]} 5. f4 {[%clk 0:03:00]}  c5 {[%clk 0:03:02]} 6. Nf3 {[%clk 0:03:00]}  Nf6 {[%clk 0:03:01]} 7. Qe2 {[%clk 0:03:00]}  d5 {[%clk 0:02:58]} 8. e5 {[%clk 0:03:00]}  Ne4 {[%clk 0:02:56]} 9. Nbd2 {[%clk 0:02:59]}  Nxd2 {[%clk 0:02:54]} 10. Bxd2 {[%clk 0:02:59]}  c4 {[%clk 0:02:53]} 11. Bc2 {[%clk 0:02:59]}  g6 {[%clk 0:02:54]} 12. g4 {[%clk 0:02:58]}  h5 {[%clk 0:02:54]} 13. gxh5 {[%clk 0:02:41]}  Rxh5 {[%clk 0:02:52]} 14. Ng5 {[%clk 0:02:39]}  Qe7 {[%clk 0:02:41]} 15. Qg4 {[%clk 0:02:37]}  Kd7 {[%clk 0:01:56]} 16. O-O-O {[%clk 0:02:16]}  b4 {[%clk 0:01:40]} 17. Rdg1 {[%clk 0:02:15]}  bxc3 {[%clk 0:01:34]} 18. Bxc3 {[%clk 0:02:15]}  Bh6 {[%clk 0:01:33]} 19. Kb1 {[%clk 0:02:07]}  Nc6 {[%clk 0:01:33]} 20. Nxf7 {[%clk 0:02:03]}  Rh4 {[%clk 0:01:07]} 21. Qxg6 {[%clk 0:01:57]}  Bxf4 {[%clk 0:01:05]} 22. Nd6 {[%clk 0:01:56]}  Kc7 {[%clk 0:00:59]} 23. Qg7 {[%clk 0:01:50]}  Bh6 {[%clk 0:00:19]} 24. Qxe7+ {[%clk 0:01:50]}  Nxe7 {[%clk 0:00:20]} 25. Ba5+ {[%clk 0:01:50]}  Kb8 {[%clk 0:00:19]} 26. Bb6 {[%clk 0:01:47]}  a5 {[%clk 0:00:19]} 27. Nf7 {[%clk 0:01:31]}  Bf4 {[%clk 0:00:18]} 28. Bd8 {[%clk 0:01:25]}  Rxh2 {[%clk 0:00:06]} 29. Bxe7 {[%clk 0:01:24]}  Rxh1 {[%clk 0:00:05]} 30. Rxh1 {[%clk 0:01:25]}  Ka7 {[%clk 0:00:05]} 31. Bc5+ {[%clk 0:01:23]}  Ka6 {[%clk 0:00:06]} 32. Rf1 {[%clk 0:01:23]}  Be3 {[%clk 0:00:05]} 33. Rf6 {[%clk 0:01:23]}  Rg8 {[%clk 0:00:04]} 34. Rxe6+ {[%clk 0:01:22]}  Bc6 {[%clk 0:00:03]} 35. Rxc6+ {[%clk 0:01:22]}  Kb7 {[%clk 0:00:04]} 36. Rb6+ {[%clk 0:01:22]}  Kc7 {[%clk 0:00:04]} 37. a3 {[%clk 0:01:16]}  Rg1+ {[%clk 0:00:02]} 38. Ka2 {[%clk 0:01:16]}  Rg2 {[%clk 0:00:03]} 39. Ba4 {[%clk 0:00:48]}  c3 {[%clk 0:00:03]} 40. e6 {[%clk 0:00:49]}  Bc1 {[%clk 0:00:02]} 41. e7 {[%clk 0:00:46]} 1-0


[Site "https://www.chess.com"]